Cogmind - Beta 9.3 @@@ ROGUE MODE // 2019.12.22 @ 20:33:57 // Winter2019/RPGLIKE Player: PlasticHeart Result: Destroyed by G-47 Trooper with Particle Gun Performance ------------- Evolutions (3) 1500 Regions Visited (8) 1600 Robots Destroyed (87) 435 Value Destroyed (1983) 1983 Prototype IDs (2) 40 Alien Tech Used (0) 0 Bonus (41) 41 TOTAL SCORE: 5599 Bonus ------- High Alert Combat Kills 41 Cogmind --------- Core Integrity 0/600 Matter 300/300 Energy 140/140 System Corruption 1% Temperature Cool (9) Movement Flying (40) Location -7/Factory Parts ------- > --- POWER (1) -------- Light Deuterium Engine > --- PROPULSION (2) --- Cesium-ion Thruster > --- UTILITY (7) ------ Advanced Signal Interpreter Armor Integrity Analyzer Maneuvering Thrusters Hacking Suite Hacking Suite System Shield System Shield > --- WEAPON (2) ------- Powered Hammer Katana > --- INVENTORY (4) ---- Light Deuterium Engine Light Deuterium Engine Improved Melee Analysis Suite Hacking Suite Peak State ------------ > --- POWER ------------ Light Deuterium Engine > --- PROPULSION ------- Cesium-ion Thruster Cesium-ion Thruster > --- UTILITY ---------- Advanced Signal Interpreter Armor Integrity Analyzer Maneuvering Thrusters Hacking Suite Hacking Suite System Shield System Shield > --- WEAPON ----------- Powered Hammer Katana > --- INVENTORY -------- Light Deuterium Engine Cesium-ion Thruster Improved Melee Analysis Suite [Rating: 37] Favorites ----------- Power Light Deuterium Engine Engine Light Deuterium Engine Power Core Light Nuclear Core Propulsion Cesium-ion Thruster Leg Aluminum Leg Wheel Wheel Hover Unit Combat Airjet Flight Unit Cesium-ion Thruster Utility Hacking Suite Device Improved Heat Sink Processor Advanced Signal Interpreter Hackware Hacking Suite Weapon EM Shotgun Energy Gun EM Shotgun Ballistic Gun Assault Rifle Launcher Grenade Launcher Impact Weapon Powered Hammer Slashing Weapon Katana Build | -11 -10 -10 -9 -9 -9 -8 -8 -7 ------- Run | Scr Mat Min Mat Min Exi Min Mat Fac Slots Evolved 8 | 1 1 . 3 1 . . 1 1 Power . | . . . . . . . . . Propulsion 1 | . . . 1 . . . . . Utility 6 | . 1 . 2 1 . . 1 1 Weapon 1 | 1 . . . . . . . . Parts Attached 33 | 5 5 4 10 1 . . 2 6 Power 5 | 1 1 1 . . . . 1 1 Engine 4 | 1 . 1 . . . . 1 1 Core 1 | . 1 . . . . . . . Reactor . | . . . . . . . . . Propulsion 9 | 2 . 1 4 . . . . 2 Treads . | . . . . . . . . . Leg 1 | 1 . . . . . . . . Wheel 1 | 1 . . . . . . . . Hover 1 | . . 1 . . . . . . Flight 6 | . . . 4 . . . . 2 Utility 8 | . 2 . 3 1 . . 1 1 Device 2 | . 1 . . . . . 1 . Storage . | . . . . . . . . . Processor 2 | . . . 2 . . . . . Hackware 4 | . 1 . 1 1 . . . 1 Protection . | . . . . . . . . . Artifact . | . . . . . . . . . Weapon 11 | 2 2 2 3 . . . . 2 Energy Gun 6 | 1 2 1 2 . . . . . Energy Cannon . | . . . . . . . . . Ballistic Gun 1 | 1 . . . . . . . . Ballistic Cannon . | . . . . . . . . . Launcher 1 | . . 1 . . . . . . Special Weapon . | . . . . . . . . . Impact Weapon 1 | . . . . . . . . 1 Slashing Weapon 2 | . . . 1 . . . . 1 Piercing Weapon . | . . . . . . . . . Special Melee Weapon . | . . . . . . . . . Unidentified Prototypes . | . . . . . . . . . Parts Lost 1 | . . . . . . . . 1 Power . | . . . . . . . . . Propulsion 1 | . . . . . . . . 1 Utility . | . . . . . . . . . Weapon . | . . . . . . . . . Highest Loss Streak 1 | . . . . . . . . 1 Average Slot Usage (%) 96 | . 98 100 91 100 100 100 96 97 Engine 7 | . 1 5 12 10 10 10 9 8 Core 6 | . 18 10 . . . . . . Wheel 6 | . 20 10 . . . . . . Hover 1 | . . 5 2 . . . . . Flight 11 | . . . 19 21 20 20 18 15 Device 10 | . 18 16 6 . . . 5 8 Processor 7 | . . . 6 21 20 20 18 16 Hackware 18 | . . 16 23 23 30 30 27 31 Energy Gun 19 | . 31 33 10 21 20 20 18 . Ballistic Gun 1 | . 8 . . . . . . . Slashing Weapon 3 | . . . 7 . . . . 8 Naked Turns . | . . . . . . . . . Heaviest Build 12 | 9 12 12 12 11 11 11 12 12 Greatest Support 22 | 10 10 22 22 22 22 22 22 22 Greatest Overweight (x) 1 | . 1 1 1 . . . . . Average Overweight (x) . | . . . . . . . . . Largest Inventory Capacity 4 | 4 4 4 4 4 4 4 4 4 Average Capacity 3 | . 4 4 4 4 4 4 4 4 Most Carried 4 | . 4 4 4 3 2 3 3 4 Average Carried 2 | . 2 3 3 2 2 2 2 3 Final Capacity 4 | 4 4 4 4 4 4 4 4 4 Final Carried 4 | . 3 3 3 2 2 3 3 4 Class Distribution -------------------- 53% | Hacker-Mutant 34% | Mutant 12% | Scavenger-Mutant Dominant Class ---------------- Mutant | -10/Materials Mutant | -10/Mines Hacker-Mutant | -9/Materials Hacker-Mutant | -9/Mines Hacker-Mutant | -9/Exiles Hacker-Mutant | -8/Mines Hacker-Mutant | -8/Materials Hacker-Mutant | -7/Factory Resources | -11 -10 -10 -9 -9 -9 -8 -8 -7 ----------- Run | Scr Mat Min Mat Min Exi Min Mat Fac Matter Collected 630 | 221 159 60 100 10 . . 20 60 Remotely . | . . . . . . . . . Salvage Created 3139 | . 621 348 1250 185 . 44 206 485 Parts 185 | . 47 8 80 16 . 3 14 17 Haulers Intercepted 11 | . 2 . 5 . . . 1 3 Recyclers Shooed 2 | . 1 . . 1 . . . . Parts Field Recycled . | . . . . . . . . . Retrieved Matter . | . . . . . . . . . Parts Self-Destructed . | . . . . . . . . . Prevented . | . . . . . . . . . Kills | -11 -10 -10 -9 -9 -9 -8 -8 -7 ------- Run | Scr Mat Min Mat Min Exi Min Mat Fac Combat Hostiles Destroyed 58 | . 12 11 16 10 . 3 2 4 Melee 13 | . . . 9 . . . . 4 Guns 44 | . 12 10 7 10 . 3 2 . AOE 1 | . . 1 . . . . . . Classes Destroyed 12 | . 6 2 2 1 . . . 1 Worker 5 | . 2 1 1 . . . . 1 Builder 1 | . 1 . . . . . . . Tunneler 1 | . . 1 . . . . . . Hauler 11 | . 2 . 5 . . . 1 3 Operator 3 | . 2 . 1 . . . . . Watcher 8 | . 1 . 3 . . . 2 2 Swarmer 11 | . . . . 8 . 3 . . Grunt 24 | . 12 3 6 2 . . . 1 Duelist 2 | . . . 2 . . . . . Sentry 11 | . . . 8 . . . 2 1 Hunter 2 | . . . . . . . . 2 Assembled 8 | . . 8 . . . . . . Best Kill Streak 8 | . 3 3 8 8 . 3 3 3 Combat Bots Only 8 | . 2 2 2 8 . 3 1 1 Max Kills in Single Turn 2 | . 2 2 1 1 . 1 1 1 Gunslinging . | . . . . . . . . . Exploded 1 | . . 1 . . . . . . Melee 1 | . . . 1 . . . . 1 Uniques/NPCs Destroyed . | . . . . . . . . . Combat | -11 -10 -10 -9 -9 -9 -8 -8 -7 -------- Run | Scr Mat Min Mat Min Exi Min Mat Fac Damage Taken 2546 | . 512 190 604 312 . 40 60 828 Core 2129 | . 410 153 512 248 . 30 53 723 Absorbed by Shields . | . . . . . . . . . Redirected to Core 1394 | . 335 133 308 189 . 30 24 375 Core Remaining (%) 95 | 100 . 98 . . . 89 95 . Volleys Fired 153 | . 57 29 24 23 . 4 16 . Largest 2 | . 2 2 2 2 . 2 2 . Hottest 90 | . 90 90 90 90 . 90 90 . Shots Fired 292 | . 113 56 48 35 . 8 32 . Gun 291 | . 113 55 48 35 . 8 32 . Cannon . | . . . . . . . . . Launcher 1 | . . 1 . . . . . . Special . | . . . . . . . . . Kinetic 30 | . 30 . . . . . . . Thermal 29 | . 29 . . . . . . . Explosive 1 | . . 1 . . . . . . Electromagnetic 232 | . 54 55 48 35 . 8 32 . Robot Hit Streak 21 | . 21 6 7 7 . 2 7 . Robot Miss Streak 8 | . 5 8 6 6 . 3 8 . Penetration Max . | . . . . . . . . . Secondary Targets 3 | . 1 . 1 . . 1 . . Max Gunslinging Chain 1 | . 1 . 1 . . 1 . . Shots Hit Robots 288 | . 82 39 81 26 . 5 21 34 Core Hits 145 | . 41 27 40 14 . 3 12 8 Critical Hits 3 | . . . 1 . . . . 2 Critical Kills 2 | . . . . . . . . 2 Critical Parts Destroyed 1 | . . . 1 . . . . . Melee Attacks 110 | . . . 59 . . . . 51 Impact 9 | . . . . . . . . 9 Slashing 101 | . . . 59 . . . . 42 Piercing . | . . . . . . . . . Sneak Attacks 15 | . . . 8 . . . . 7 Combat Hostiles 3 | . . . 2 . . . . 1 Follow-up Attacks 8 | . . . . . . . . 8 Damage Inflicted 6490 | . 1145 423 2543 301 . 57 323 1698 Guns 2628 | . 1060 384 524 280 . 57 323 . Cannons . | . . . . . . . . . Explosions 155 | . 74 39 21 21 . . . . Melee 3696 | . . . 1998 . . . . 1698 Ramming 11 | . 11 . . . . . . . Kinetic 249 | . 249 . . . . . . . Thermal 407 | . 365 . 21 21 . . . . Explosive 39 | . . 39 . . . . . . Electromagnetic 2088 | . 520 384 524 280 . 57 323 . Impact 268 | . . . . . . . . 268 Slashing 3428 | . . . 1998 . . . . 1430 Piercing . | . . . . . . . . . Highest Corruption 1 | . . . . . . . . 1 Average Corruption 1 | . . . . . . . . 1 Corruption Purged . | . . . . . . . . . Overload Shots . | . . . . . . . . . Overflow Damage 514 | . . . 142 . . . . 372 Projectiles . | . . . . . . . . . Explosions . | . . . . . . . . . Melee 514 | . . . 142 . . . . 372 Knockbacks 2 | . . . . . . . . 2 Impact 2 | . . . . . . . . 2 Kinetic . | . . . . . . . . . Secondary . | . . . . . . . . . Self-Inflicted Damage 23 | . 23 . . . . . . . Shots 1 | . 1 . . . . . . . Rammed 1 | . 1 . . . . . . . Targets Rammed 1 | . 1 . . . . . . . Kicked . | . . . . . . . . . Crushed . | . . . . . . . . . Highest Temperature 283 | . 45 52 205 283 . 160 167 61 Average Temperature 77 | . 15 23 64 127 . 82 75 21 Received Heat Transfer 805 | . 273 85 267 42 . . 36 102 Effects 1 | . . . . 1 . . . . Energy Bleed 1 | . . . . 1 . . . . Siege Activations . | . . . . . . . . . Robots Corrupted . | . . . . . . . . . Combat Hostiles . | . . . . . . . . . Parts Fried 11 | . 1 . 2 2 . . 3 3 Impact Corruptions 3 | . . . . . . . . 3 Robots Melted . | . . . . . . . . . Combat Hostiles . | . . . . . . . . . Parts Melted 1 | . 1 . . . . . . . Heat Transferred 1051 | . 951 . 50 50 . . . . Parts Sabotaged . | . . . . . . . . . Parts Stolen . | . . . . . . . . . Parts Stripped . | . . . . . . . . . Power Chain Reactions 4 | . 2 . 1 1 . . . . Missiles Intercepted . | . . . . . . . . . Alert | -11 -10 -10 -9 -9 -9 -8 -8 -7 ------- Run | Scr Mat Min Mat Min Exi Min Mat Fac Peak Influence 523 | . 197 104 523 448 . 70 100 199 Average Influence 134 | . 66 61 244 332 . 30 39 93 Maximum Alert Level 2 | . . . 2 2 . . . . Low Security (%) 76 | 100 100 100 41 . . 100 100 100 Level 1 17 | . . . 45 65 . . . . Level 2 6 | . . . 13 34 . . . . Level 3 . | . . . . . . . . . Level 4 . | . . . . . . . . . Level 5 . | . . . . . . . . . High Security . | . . . . . . . . . Max Security . | . . . . . . . . . Squads Dispatched 7 | . 3 . 3 . . . . 1 Investigation 1 | . 1 . . . . . . . Extermination . | . . . . . . . . . Reinforcement 6 | . 2 . 3 . . . . 1 Assault . | . . . . . . . . . Garrison . | . . . . . . . . . Intercept . | . . . . . . . . . Construction Impeded . | . . . . . . . . . Haulers Reinforced . | . . . . . . . . . Stealth | -11 -10 -10 -9 -9 -9 -8 -8 -7 --------- Run | Scr Mat Min Mat Min Exi Min Mat Fac Distress Signals 12 | . . 2 5 . . . 4 1 Communications Jammed . | . . . . . . . . . Distress Signals . | . . . . . . . . . Times Spotted 131 | . 21 25 46 11 . 3 17 8 Peak Tracking Total 14 | . 4 14 10 7 . 3 8 3 Tactical Retreats 16 | . 1 3 9 1 . . 2 . Traps | -11 -10 -10 -9 -9 -9 -8 -8 -7 ------- Run | Scr Mat Min Mat Min Exi Min Mat Fac Traps Triggered 2 | . 1 . . . . . . 1 Indirectly . | . . . . . . . . . Trap Hack Attempts . | . . . . . . . . . Triggered . | . . . . . . . . . Disarmed . | . . . . . . . . . Reprogrammed . | . . . . . . . . . Reused . | . . . . . . . . . Traps Extracted . | . . . . . . . . . Installed . | . . . . . . . . . Triggered . | . . . . . . . . . Machines | -11 -10 -10 -9 -9 -9 -8 -8 -7 ---------- Run | Scr Mat Min Mat Min Exi Min Mat Fac Machines Disabled 2 | . . . 2 . . . . . Max in Single Turn 1 | . . . 1 . . . . . Garrison Access 1 | . . . . . . . . 1 Machines Sabotaged . | . . . . . . . . . Garrisons Compromised . | . . . . . . . . . Overloaded Fab Kills . | . . . . . . . . . Fab Network Shutdowns . | . . . . . . . . . Hacking | -11 -10 -10 -9 -9 -9 -8 -8 -7 --------- Run | Scr Mat Min Mat Min Exi Min Mat Fac Machines Accessed 20 | . 5 . 6 . . . 6 3 Terminals 18 | . 5 . 5 . . . 6 2 Fabricators . | . . . . . . . . . Repair Stations 1 | . . . 1 . . . . . Recycling Units . | . . . . . . . . . Scanalyzers . | . . . . . . . . . Garrison Access 1 | . . . . . . . . 1 Total Hacks 56 | . 8 . 21 . . . 18 9 Successful 36 | . 5 . 13 . . . 14 4 Failed 20 | . 3 . 8 . . . 4 5 Catastrophic 3 | . . . 2 . . . . 1 Database Lockouts . | . . . . . . . . . Manual 21 | . 1 . 11 . . . 7 2 Terminals 50 | . 8 . 19 . . . 18 5 Fabricators . | . . . . . . . . . Repair Stations 2 | . . . 2 . . . . . Recycling Units . | . . . . . . . . . Scanalyzers . | . . . . . . . . . Garrison Access 4 | . . . . . . . . 4 Terminal Hacks 26 | . 5 . 9 . . . 9 3 Robot Schematic 1 | . . . . . . . . 1 Prototype ID Bank 1 | . . . 1 . . . . . Machine Index 1 | . . . . . . . 1 . Alert Level 1 | . 1 . . . . . . . Unreport Threat 5 | . 2 . . . . . 3 . Locate Traps 6 | . . . 3 . . . 2 1 Recall Reinforcements 3 | . . . 3 . . . . . Hauler Manifests 3 | . . . 1 . . . 2 . Zone Layout 5 | . 2 . 1 . . . 1 1 Fabricator Hacks . | . . . . . . . . . Repair Station Hacks 2 | . . . 2 . . . . . Scan Component 1 | . . . 1 . . . . . Repair 1 | . . . 1 . . . . . Recycling Unit Hacks . | . . . . . . . . . Scanalyzer . | . . . . . . . . . Garrison Access Hacks 1 | . . . . . . . . 1 Seal Access 1 | . . . . . . . . 1 Unauthorized Hacks 19 | . 1 . 4 . . . 12 2 Terminals 7 | . . . 2 . . . 5 . Track 2 | . . . . . . . 2 . Assimilate 3 | . . . 1 . . . 2 . Botnet 2 | . . . 1 . . . 1 . Fabricators . | . . . . . . . . . Repair Stations . | . . . . . . . . . Recycling Units . | . . . . . . . . . Scanalyzers . | . . . . . . . . . Garrison Access . | . . . . . . . . . Data Cores Recovered . | . . . . . . . . . Used . | . . . . . . . . . Hacking Detections 12 | . 4 . 4 . . . 3 1 Full Trace Events . | . . . . . . . . . Feedback Events . | . . . . . . . . . Feedback Blocked . | . . . . . . . . . Robot Schematics Acquired 1 | . . . . . . . . 1 Robots Built . | . . . . . . . . . Matter . | . . . . . . . . . Time . | . . . . . . . . . Total Robot Build Rating . | . . . . . . . . . Part Schematics Acquired . | . . . . . . . . . Parts Built . | . . . . . . . . . Matter . | . . . . . . . . . Time . | . . . . . . . . . Total Part Build Rating . | . . . . . . . . . Parts Repaired 1 | . . . 1 . . . . . Time 19 | . . . 19 . . . . . Parts Recycled . | . . . . . . . . . Recycled Matter . | . . . . . . . . . Retrieved Matter . | . . . . . . . . . Retrieved Components . | . . . . . . . . . Parts Scanalyzed . | . . . . . . . . . Part Schematics Acquired . | . . . . . . . . . Parts Damaged . | . . . . . . . . . Bothacking | -11 -10 -10 -9 -9 -9 -8 -8 -7 ------------ Run | Scr Mat Min Mat Min Exi Min Mat Fac Used RIF Installer . | . . . . . . . . . Robots Hacked . | . . . . . . . . . Non-combat . | . . . . . . . . . Combat . | . . . . . . . . . Robot Hacks Applied . | . . . . . . . . . Relay Couplers Released . | . . . . . . . . . Robots Rewired . | . . . . . . . . . Allies Hacked . | . . . . . . . . . Hacks Repelled . | . . . . . . . . . Allies | -11 -10 -10 -9 -9 -9 -8 -8 -7 -------- Run | Scr Mat Min Mat Min Exi Min Mat Fac Total Allies 7 | . . 5 1 . . . 1 . Largest Group 3 | . . 3 1 . . . 1 . Highest-Rated Group 42 | . . 42 10 . . . 10 . Highest-Rated Ally 31 | . . 31 10 . . . 10 . Total Orders . | . . . . . . . . . Ally Attacks 43 | . . 43 . . . . . . Total Damage 445 | . . 445 . . . . . . Kills 4 | . . 4 . . . . . . Allies Corrupted . | . . . . . . . . . Allies Melted . | . . . . . . . . . Intel | -11 -10 -10 -9 -9 -9 -8 -8 -7 ------- Run | Scr Mat Min Mat Min Exi Min Mat Fac Robot Analysis Total . | . . . . . . . . . Derelict Logs Recovered 2 | . . 1 . 1 . . . . Drone Launches . | . . . . . . . . . Drone Recoveries . | . . . . . . . . . Exploration | -11 -10 -10 -9 -9 -9 -8 -8 -7 ------------- Run | Scr Mat Min Mat Min Exi Min Mat Fac Turns Passed 3040 | 47 616 617 732 282 52 85 188 421 Spaces Moved 4010 | 39 443 573 990 540 141 190 300 794 Core 3 | 3 . . . . . . . . Treads . | . . . . . . . . . Legs 22 | 22 . . . . . . . . Wheels 823 | 14 443 366 . . . . . . Hover 327 | . . 207 120 . . . . . Flight 2835 | . . . 870 540 141 190 300 794 Fastest Speed 37 | 50 80 80 37 37 37 37 37 37 Average Speed 51 | 100 86 86 42 37 37 37 37 37 Slowest Speed 120 | 120 90 90 120 37 37 37 37 40 Overloaded Moves . | . . . . . . . . . Propulsion Burnouts . | . . . . . . . . . Robots Hopped 8 | . . . 2 4 . . 2 . Cave-ins Triggered . | . . . . . . . . . Exploration Rate (%) 49 | 3 64 97 62 66 53 45 35 21 Regions Visited 8 Branch Regions 4 Pre-discovered Areas . | . . . . . . . . . Known Exits Taken 5 | . . . 1 1 1 1 1 . Unknown Exits Taken 3 | 1 1 1 . . . . . . Scrap Searched 4 | . . 2 . . . 2 . . Spaces Dug 13 | . . . 8 . . . . 5 Terrain Destroyed 27 | . 4 2 11 5 . . . 5 Melee 13 | . . . 8 . . . . 5 Projectile . | . . . . . . . . . AOE 14 | . 4 2 3 5 . . . . Actions | -11 -10 -10 -9 -9 -9 -8 -8 -7 --------- Run | Scr Mat Min Mat Min Exi Min Mat Fac Total 4526 | 44 564 637 1166 582 140 196 341 856 Wait 108 | . 22 13 44 10 . . 19 . Move 3986 | 38 442 572 985 531 140 189 295 794 Hop 8 | . . . 2 4 . . 2 . Pick Up 22 | . 7 1 9 . . 1 . 4 Fast Attach 13 | 5 2 1 5 . . . . . Attach 11 | . 3 . 3 1 . . 1 3 Detach . | . . . . . . . . . Swap 9 | . . 3 2 . . . 1 3 Drop 22 | 1 4 2 11 . . . . 4 Fire 153 | . 57 29 24 23 . 4 16 . Melee 101 | . . . 59 . . . . 42 Ram 1 | . 1 . . . . . . . Kick . | . . . . . . . . . Crush . | . . . . . . . . . Escape Stasis . | . . . . . . . . . Rewire . | . . . . . . . . . Trap . | . . . . . . . . . Miscellaneous 92 | . 26 16 22 13 . 2 7 6 Route ------- -11/Scrapyard -10/Materials (discovered 3 exits: *Mat x2 / [*Min]) -10/Mines (discovered 2 exits: *Mat x2) -9/Materials (discovered 3 exits: *Mat x2 / *Min) -9/Mines (discovered 3 exits: *Mat x2 / *Exi) -9/Exiles -8/Mines -8/Materials -7/Factory (discovered 1 exit: [*Low]) History --------- Turn | Location | Event 22 | -11/Scrapyard | Discovered new exit (range 15) 24 | -11/Scrapyard | Upgraded with Weapon slot (x1) 48 | -11/Scrapyard | Entered Materials 299 | -10/Materials | Discovered new exit (range 16) 338 | -10/Materials | Build established: Mutant 431 | -10/Materials | Discovered new exit (range 9) 490 | -10/Materials | Discovered new exit (range 8) 633 | -10/Materials | Reached level 2 663 | -10/Materials | Upgraded with Utility slot (x1) 664 | -10/Materials | Entered Mines 737 | -10/Mines | Discovered new exit (range 12) 839 | -10/Mines | Assembled infested the area 844 | -10/Mines | Assisted by a Guerilla fighting off Assembled 916 | -10/Mines | Assisted by bots powering up and referring to "LRC-V3" 1220 | -10/Mines | Learned 8 Materials zone layouts 1223 | -10/Mines | Discovered new exit (range 5) 1281 | -10/Mines | Entered Materials 1282 | -9/Materials | Identified exit to Materials 1283 | -9/Materials | Reached level 3 1363 | -9/Materials | Build established: Scavenger-Mutant 1421 | -9/Materials | Upgraded with Propulsion slot (x1) 1421 | -9/Materials | Upgraded with Utility slot (x1) 1504 | -9/Materials | Reached level 4 1539 | -9/Materials | Discovered new exit (range 12) 1747 | -9/Materials | Build established: Hacker-Mutant 1780 | -9/Materials | Identified exit to Mines 1812 | -9/Materials | Repaired Cesium-ion Thruster 1906 | -9/Materials | Reached level 5 1984 | -9/Materials | Upgraded with Utility slot (x1) 2013 | -9/Materials | Entered Mines 2057 | -9/Mines | Discovered exit to Materials (range 13) 2124 | -9/Mines | Learned Materials stockpile data 2159 | -9/Mines | Reached level 6 2235 | -9/Mines | Deemed a non-threat by the Exiles lab entrance 2236 | -9/Mines | Discovered new exit (range 5) 2237 | -9/Mines | Destroyed 8 combat bots 2246 | -9/Mines | Upgraded with Utility slot (x1) 2256 | -9/Mines | Discovered exit to Materials (range 8) 2295 | -9/Mines | Identified exit to Exiles 2295 | -9/Mines | Entered Exiles 2305 | -9/Exiles | Met 8R-AWN 2312 | -9/Exiles | Met EX-HEX 2325 | -9/Exiles | Met EX-DEC 2342 | -9/Exiles | Discovered new exit (range 14) 2347 | -9/Exiles | Identified exit to Mines 2347 | -9/Exiles | Entered Mines 2390 | -8/Mines | Reached level 7 2419 | -8/Mines | Discovered exit to Materials (range 10) 2432 | -8/Mines | Entered Materials 2434 | -8/Materials | Reached level 8 2434 | -8/Materials | Upgraded with Utility slot (x1) 2619 | -8/Materials | Discovered new exit (range 4) 2619 | -8/Materials | Identified exit to Factory 2620 | -8/Materials | Entered Factory 2622 | -7/Factory | Reached level 9 2703 | -7/Factory | Upgraded with Utility slot (x1) 2720 | -7/Factory | Core integrity fell below 50% 2720 | -7/Factory | Core integrity fell below 20% 2963 | -7/Factory | Discovered new exit (range 12) 3040 | -7/Factory | Reached level 10 3041 | -7/Factory | Destroyed by G-47 Trooper with Particle Gun Last Messages --------------- 02979_ ALERT: Hostiles spotted, dispatching reinforcements to Terminal F004. 02980_ Powered Hammer follow-up attack on Y-54 Guardian. 02989_ Cesium-ion Thruster destroyed. 02990_ Y-54 Guardian suffers critical hit. 02990_ Y-54 Guardian destroyed. 02992_ K-01 Serf collects debris. 02998_ Connecting with Terminal... >>Schematic(P-60 Hacker) Downloading schematic... P-60 Hacker Tier: 4 Schematic downloaded. 03003_ K-01 Serf collects debris. 03031_ U-05 Engineer builds a Wall. 03035_ Aluminum Leg severed. 03035_ Powered Hammer follow-up attack on G-47 Trooper. 03036_ K-01 Serf cleans the Repair Station. 03040_ Reached level 10. 03040_ G-47 Trooper destroyed. Map ----- +----------------------------------------------------+ | ???????????????# # ###########+######?? | | ???????????????# # #????? | | ????????????????? """" + ###### | | ????????????????? """" # """" !! | | ?????????????????? """" #!! """" !! ###### | | ?????????????????? """"?#!! """" #?#### | | ?????????????????? ^ ?# #? | | ?????????????????? """??# """ """" """" # """" | | ????????????????? """??# "R """" """" # """" | | ???????????????????""???# """ """" """" + """" | | ????????????????????????#% k"" u# """" | | ????????????????????????# # | | ????????????????????????# ! #?#### | | ????????????????????????# ###########+###????? | | ????????????????????????# #???????? ?????? | | ????????????????????????# #?????? ???? | | ????????????????????????# ###### ?? | | ????????????????????????# + #? | | ???????????############## ###### #? | | ???????????# # #????# #? | | ???????????# # #????# #? | | ??????????????"" """ # #????# #? | | ??????????????"" """ g/ k#????# #? | | ???????????# """ """ !#g k#????# #? | | ???????????# %+= r #????# #? | | ???????????+ """ """ #@ k #????# #? | | ?????????????""" """ # #????##############? | | ??????????????"" """ # #????????# T #? | | ?????????????? # ########?# """ #? | | ?????????????? # #?# """ #? | | ????????????? # ### """ #? | | ????????????############# + #? | | ????????????????????????#u ### """ #? | | ???????????????????????## u #?# """ #? | | ?????????????????############### k #?# """ #? | | ?????????????????# #?# #?# #? | | ?????????????????# """"""""" #?# #?# """ #? | | ?????????????????# #?# *% #?# ! """ #? | | ?????????????????# """"""""" #?# k #?# """ #? | | ?????????????????# #?# #?# ??? | | ?????????????????# """"""""" ### ### ??? | | ??????????######?# # ####+###??? | | ???????? ###+#######+### ??? | | ????????" """" # u ??? | | ???????"" """" # ??? | | ??????""" """" # < ???? | | """" """" # ???? | | + ???? | | # #####+### ????? | | ?###########+### ## # ####+#????? | +----------------------------------------------------+ Best States ------------- Heat Dissipation 39 Energy Generation 14 Energy Capacity 250 Matter Stores 300 Matter Capacity 300 Sight Range 16 Robot Scan Range 24 Terrain Scan Density 10 Evasion (%) 68 Armor Integrity Analysis 33 Offensive Hacking 20 Defensive Hacking 20 Item Schematics ----------------- None Robot Schematics ------------------ P-60 Hacker | -7/Factory | Hacked Fabricated ------------ Nothing Alien Tech Used ----------------- None Achievements -------------- None Challenges ------------ None RPGLIKE | -11 -10 -10 -9 -9 -9 -8 -8 -7 --------- Run | Scr Mat Min Mat Min Exi Min Mat Fac Levels Raised 9 | . 1 . 3 1 . 1 1 2 XP Earned 16630 | 3000 1640 850 4137 1653 200 850 2025 2275 XP Spent 14050 | 3000 1000 . 3850 2500 . . 1700 2000 Upgrades 28 | 5 6 . 10 5 . . 1 1 Propulsion Slot 1 | . . . 1 . . . . . Utility Slot 6 | . 1 . 2 1 . . 1 1 Weapon Slot 1 | 1 . . . . . . . . Mass Support 2 | . . . 1 1 . . . . Inventory Capacity 4 | 4 . . . . . . . . Sensor Range 12 | . 5 . 4 3 . . . . Melee Accuracy 2 | . . . 2 . . . . . Protomatter Created 658 | . 223 30 197 97 . 15 50 46 Integrity Restored 1811 | . 484 267 472 260 . 45 145 138 Core 1517 | . 381 174 449 238 . 45 92 138 Parts 294 | . 103 93 23 22 . . 53 . Protomatter Decayed 300 | . . 206 94 . . . . . Game ------ Seed AlphaCombatMapper Manual? 0 Play Time 00:50:39 Cumulative 630.6 hours Start 2019.12.22 @ 18:44:13 End 2019.12.22 @ 20:33:57 Sessions 1 Manual Loads 0 Difficulty Rogue Special Mode Winter2019/RPGLIKE Game No. 357 Rogue 357 Adventurer 0 Explorer 0 Win Type - Total 51 Types 29/2/12/5/1/1/1 Lore% 89 Gallery% 84 Achievement% 69 Wizard Run 0 Options --------- ASCII 0 Keyboard 0 Movement Mouse Keybinds 0 Fullscreen 0 Font 32/SmallcapsGlow Map View 76x50 Tactical HUD 1 Map Filters NONE Filters NONE Steam 0 RUN: 5a146118-0d46-4ce3-9a33-ea887b65d1c5